bitfinex-derivatives/quotes_SOLF0:USTF0_20260218
["timestamp","ask_amount","ask_price","bid_price","bid_amount"]
[1771427234356,8.90095993,82.809,82.76,10.8796]
[1771427239158,8.91142901,82.795,82.72,6.26426836]
[1771427239368,8.91142901,82.795,82.721,76.08]
[1771427239556,8.91142901,82.795,82.716,76.08]
[1771427240066,8.91260909,82.837,82.716,76.08]
[1771427240364,8.91260909,82.819,82.73,6.26426836]
[1771427240972,8.91432189,82.818,82.763,10.8792]
[1771427241864,8.91547577,82.805,82.73,6.26426836]
[1771427242064,8.91547577,82.799,82.71,6.26426836]
[1771427242367,8.91547577,82.778,82.71,6.26426836]
[1771427243273,8.91547577,82.778,82.707,76.08]
[1771427243274,8.91534753,82.775,82.694,76.08]
[1771427243475,8.91534753,82.775,82.695,12.08]
[1771427243766,19.79237335,82.789,82.737,10.8826]
[1771427243970,8.91647335,82.788,82.71,42.52426836]
[1771427244770,19.79257335,82.788,82.741,10.8821]
[1771427244965,8.91647335,82.788,82.71,42.52426836]
[1771427245169,8.92262941,82.809,82.714,36.26]
[1771427245371,8.92262941,82.809,82.721,12.08]
[1771427245573,6.26426836,82.81,82.756,10.8801]
[1771427245574,8.92262941,82.805,82.756,10.8801]
[1771427246473,14.88432977,82.864,82.73,42.52426836]
[1771427246474,8.92373613,82.799,82.748,10.8811]
[1771427246673,8.92373613,82.799,82.73,82.34426836]
[1771427247376,8.92373613,82.799,82.731,36.26]
[1771427247768,8.92373613,82.799,82.73,82.34426836]
[1771427247972,8.92373613,82.799,82.72,6.26426836]
[1771427248167,8.92373613,82.799,82.74,6.26426836]
[1771427248569,8.92373613,82.799,82.764,10.879]
[1771427248774,8.93222569,82.812,82.764,10.879]
[1771427249378,8.93222569,82.808,82.764,10.879]
[1771427249972,8.93328898,82.799,82.703,21.7742]
[1771427250171,8.93328898,82.779,82.687,22.04035803]
[1771427250378,8.93328898,82.779,82.7,82.34426836]
[1771427250572,8.93328898,82.779,82.7,6.26426836]
[1771427250876,8.93328898,82.779,82.703,12.08]
[1771427251081,8.93328898,82.779,82.71,6.26426836]
[1771427251776,8.90994415,82.777,82.71,6.26426836]
[1771427252584,6.26426836,82.78,82.698,76.08]
[1771427252585,8.90994415,82.77,82.698,76.08]
[1771427252777,8.90994415,82.77,82.69,6.26426836]
[1771427252980,8.69948895,82.759,82.69,6.26426836]
[1771427253488,8.69948895,82.759,82.67,6.26426836]
[1771427254191,8.70022347,82.747,82.703,10.8871]
[1771427254484,14.96449183,82.76,82.67,6.26426836]
[1771427254683,14.96449183,82.76,82.717,10.8852]
[1771427255788,10.8785,82.769,82.69,6.26426836]
[1771427256591,8.61660526,82.759,82.684,36.26]
[1771427257092,8.61660526,82.759,82.72,10.8849]
[1771427257585,8.61660526,82.759,82.67,6.26426836]
[1771427257792,8.57492155,82.745,82.671,76.1]
[1771427258095,6.26426836,82.76,82.672,76.1]
[1771427258391,8.57492155,82.759,82.654,12.08]
[1771427258585,8.57492155,82.759,82.67,6.26426836]
[1771427258787,8.56301493,82.75,82.698,10.8878]
[1771427258991,8.56301493,82.739,82.67,76.1]
[1771427259284,8.56301493,82.739,82.662,76.1]
[1771427259486,8.56301493,82.739,82.65,28.05256836]
[1771427259790,8.56301493,82.739,82.67,6.26426836]
[1771427259994,8.56301493,82.739,82.67,6.26319459]
[1771427260892,8.56301493,82.739,82.693,10.8885]
[1771427261191,19.44896546,82.738,82.693,10.8885]
[1771427261492,8.56636546,82.737,82.693,10.8885]
[1771427261791,8.56688655,82.734,82.685,10.8895]
[1771427262190,6.26319459,82.73,82.685,10.8895]
[1771427262388,8.56688655,82.729,82.685,10.8895]
[1771427262581,10.8839,82.728,82.677,10.8906]
[1771427262889,8.56688655,82.727,82.677,10.8906]
[1771427263791,8.56512496,82.725,82.677,10.8906]
[1771427264382,8.56512496,82.725,82.65,6.26319459]
[1771427264581,8.56512496,82.719,82.65,6.26319459]
[1771427265490,8.56512496,82.719,82.671,10.8913]
[1771427265887,8.56512496,82.719,82.65,6.26319459]
[1771427266090,8.58749148,82.698,82.646,10.8946]
[1771427266990,8.59207757,82.696,82.646,10.8946]
[1771427267887,8.59207757,82.696,82.653,10.8937]
[1771427268786,6.26319459,82.71,82.66,10.8928]
[1771427268990,6.26319459,82.71,82.63,6.26319459]
[1771427269287,6.26319459,82.71,82.668,10.8917]
[1771427269483,8.49742886,82.714,82.65,6.26319459]
[1771427270497,8.49742886,82.714,82.65,82.40319459]
[1771427270695,6.26319459,82.73,82.65,82.40319459]
[1771427270893,6.26319459,82.73,82.651,76.14]
[1771427271197,6.26319459,82.73,82.652,12.08]
[1771427271406,6.26319459,82.71,82.63,6.26319459]
[1771427271697,6.26319459,82.71,82.593,169.5806]
[1771427271698,8.52372398,82.709,82.629,76.14]
[1771427272299,8.52372398,82.709,82.63,76.14]
[1771427272798,8.52413807,82.698,82.653,10.8937]
[1771427273490,8.49571654,82.694,82.645,10.8948]
[1771427274087,8.49609496,82.691,82.646,10.8946]
[1771427275493,10.8892,82.688,82.638,10.8956]
[1771427275799,8.49609496,82.691,82.623,76.14]
[1771427276196,8.49963896,82.69,82.642,10.8951]
[1771427277695,8.49963896,82.69,82.649,10.8942]
[1771427279900,8.48166201,82.689,82.62,6.26319459]
[1771427280099,8.48166201,82.689,82.614,2.10482386]
[1771427280297,8.48166201,82.689,82.62,6.26319459]
[1771427280700,8.48166201,82.689,82.621,76.14]
[1771427281001,6.26319459,82.7,82.622,76.14]
[1771427281300,8.54038386,82.699,82.658,10.8931]
[1771427281502,8.54038386,82.699,82.623,21.7954]
[1771427281899,8.54038386,82.699,82.624,76.14]
[1771427282201,8.54075859,82.691,82.651,10.894]
[1771427282400,8.54075859,82.691,82.624,76.14]
[1771427282801,8.54075859,82.691,82.644,10.8949]
[1771427283005,8.54075859,82.691,82.624,76.14]
[1771427283803,8.71193114,82.689,82.65,10.894]
[1771427285500,14.88432977,82.757,82.604,21.8004]
[1771427285501,8.7656812,82.679,82.604,21.8004]
[1771427285698,8.7656812,82.679,82.6,6.26319459]
[1771427286006,8.7656812,82.679,82.602,76.14]
[1771427286202,8.7656812,82.679,82.6,6.26319459]
[1771427286503,15.02940688,82.67,82.605,76.14]
[1771427286707,8.76621229,82.669,82.6,6.26319459]
[1771427287303,8.76621229,82.669,82.596,76.14]
[1771427287799,8.78317574,82.662,82.619,10.8981]
[1771427288007,6.26319459,82.67,82.6,6.26319459]
[1771427288201,8.78317574,82.679,82.644,10.8949]
[1771427288996,8.78317574,82.679,82.621,76.14]
[1771427289202,8.78533647,82.669,82.59,6.26319459]
[1771427289613,8.78533647,82.669,82.591,76.14]
[1771427290112,8.78585652,82.662,82.62,10.8981]
[1771427290310,8.78585652,82.662,82.59,6.26319459]
[1771427290506,8.78585652,82.662,82.597,76.14]
[1771427290706,8.78585652,82.68,82.61,6.26319459]
[1771427291307,8.78099935,82.697,82.63,6.26319459]
[1771427291903,8.78099935,82.697,82.662,10.8925]
[1771427292298,8.78099935,82.697,82.631,76.14]
[1771427292512,8.78099935,82.697,82.63,6.26319459]
[1771427293108,8.78099935,82.697,82.65,10.8941]
[1771427293303,8.78099935,82.697,82.63,6.26319459]
[1771427294206,6.26319459,82.71,82.63,6.26319459]
[1771427294508,8.79860356,82.714,82.611,169.5432]
[1771427294509,8.79860356,82.714,82.65,6.26319459]
[1771427294698,8.79860356,82.729,82.651,76.14]
[1771427294906,8.79860356,82.729,82.65,6.26319459]
[1771427295305,324.26004455,82.747,82.67,6.26319459]
[1771427295611,8.78126099,82.746,82.671,76.14]
[1771427295911,8.78177943,82.745,82.688,10.889]
[1771427296210,8.78177943,82.745,82.671,76.14]
[1771427296608,8.78177943,82.745,82.69,6.26319459]
[1771427297013,8.78177943,82.745,82.691,10.8886]
[1771427298408,8.78177943,82.745,82.67,82.40319459]
[1771427298409,8.78177943,82.745,82.67,76.14]
[1771427298608,8.78249351,82.739,82.66,6.26319459]
[1771427298908,8.78239289,82.735,82.678,10.8903]
[1771427299110,8.78239289,82.735,82.66,6.26319459]
[1771427300014,10.8843,82.725,82.678,10.8903]
[1771427300217,8.78239289,82.735,82.66,6.26319459]
[1771427300512,8.78284551,82.712,82.663,10.8923]
[1771427301513,8.78284551,82.712,82.642,76.14]
[1771427302110,8.78284551,82.712,82.673,10.891]
[1771427302413,8.79216543,82.727,82.66,6.26319459]
[1771427303307,8.79216543,82.727,82.68,10.8902]
[1771427303516,8.79216543,82.727,82.66,6.26319459]
[1771427304017,8.79216543,82.727,82.687,10.8892]
[1771427304816,8.79216543,82.727,82.679,10.8902]
[1771427305417,6.26319459,82.72,82.67,10.8914]
[1771427305620,8.80422739,82.719,82.67,10.8914]
[1771427306517,6.26319459,82.72,82.67,10.8914]
[1771427306518,8.80466118,82.715,82.67,10.8914]
[1771427306816,8.80466118,82.715,82.659,10.8929]
[1771427307412,8.80554109,82.694,82.62,6.26319459]
[1771427307717,8.80554109,82.694,82.618,7.63590895]
[1771427308114,7.90446133,82.716,82.639,7.63590895]
[1771427308315,7.90446133,82.716,82.651,7.63590895]
[1771427308612,10.8856,82.715,82.67,10.8914]
[1771427308915,7.90446133,82.714,82.651,7.63590895]
[1771427309114,7.90446133,82.714,82.668,10.8917]
[1771427309811,10.886,82.712,82.668,10.8917]
[1771427310416,18.79076133,82.71,82.668,10.8917]
[1771427310721,6.26319459,82.72,82.651,7.63590895]
[1771427310722,7.90446133,82.709,82.651,7.63590895]
[1771427311321,7.90446133,82.709,82.667,10.8919]
[1771427312218,6.26319459,82.72,82.667,10.8919]
[1771427312219,7.90446133,82.708,82.667,10.8919]
[1771427313730,10.8866,82.707,82.651,7.63590895]
[1771427314824,10.8866,82.707,82.669,10.8916]
[1771427315517,10.8866,82.707,82.661,10.8926]
[1771427315719,10.8877,82.7,82.651,7.63590895]
[1771427316215,7.90446133,82.699,82.651,7.63590895]
[1771427316415,10.888,82.697,82.654,10.8936]
[1771427316615,7.90446133,82.696,82.634,7.63590895]
[1771427317426,18.79276133,82.695,82.646,10.8946]
[1771427317620,7.90446133,82.711,82.647,7.63590895]
[1771427318924,10.8875,82.701,82.647,7.63590895]
[1771427319222,7.90446133,82.711,82.647,7.63590895]
[1771427319427,7.90446133,82.697,82.649,10.8942]
[1771427319624,7.90446133,82.697,82.632,7.63590895]
[1771427319926,7.90446133,82.697,82.62,6.26319459]
[1771427320122,7.90446133,82.671,82.62,6.26319459]
[1771427320929,7.90446133,82.687,82.622,7.63590895]
[1771427322825,10.8907,82.677,82.63,10.8968]
[1771427324434,7.90446133,82.67,82.62,6.2711088]
[1771427324620,7.90446133,82.67,82.606,7.63590895]
[1771427325832,10.8924,82.664,82.614,18.07774327]
[1771427326036,10.8924,82.664,82.614,7.17894327]
[1771427327734,10.8924,82.664,82.62,10.898]
[1771427328728,10.8909,82.675,82.614,7.17894327]
[1771427328927,6.2711088,82.68,82.614,7.17894327]
[1771427329130,7.25554924,82.678,82.633,10.8963]
[1771427329635,7.25554924,82.678,82.596,7.17894327]
[1771427329940,21.7763,82.696,82.578,7.17894327]
[1771427329941,7.25554924,82.654,82.578,7.17894327]
[1771427330538,10.897,82.629,82.585,10.9026]
[1771427330842,7.25554924,82.639,82.578,7.17894327]
[1771427331431,7.25554924,82.63,82.562,7.17894327]
[1771427331626,7.25554924,82.63,82.564,7.17894327]
[1771427331932,7.25554924,82.618,82.578,10.9036]
[1771427332328,7.25554924,82.618,82.564,7.17894327]
[1771427332737,7.25554924,82.616,82.55,82.4111088]
[1771427333130,7.25554924,82.616,82.551,7.17894327]
[1771427334838,7.25554924,82.614,82.569,10.9047]
[1771427335932,7.25554924,82.614,82.576,10.9039]
[1771427336837,7.25554924,82.63,82.583,10.9029]
[1771427337331,7.25554924,82.63,82.59,10.902]
[1771427337734,7.25554924,82.629,82.555,7.17894327]
[1771427338029,7.25554924,82.629,82.574,7.25940813]
[1771427338733,7.25554924,82.629,82.555,7.25940813]
[1771427338936,7.06529881,82.602,82.557,10.9063]
[1771427339140,7.06529881,82.602,82.539,7.25940813]
[1771427340341,7.06529881,82.601,82.557,10.9064]
[1771427340636,7.06529881,82.601,82.539,7.25940813]
[1771427340838,10.9017,82.593,82.548,10.9075]
[1771427341143,7.06529881,82.592,82.539,7.25940813]
[1771427341338,7.06529881,82.609,82.56,10.906]
[1771427341639,12.32943599,82.624,82.56,7.25940813]
[1771427342035,12.32943599,82.624,82.59,10.902]
[1771427342437,7.06529881,82.642,82.571,7.25940813]
[1771427342644,7.06529881,82.639,82.571,7.25940813]
[1771427342842,7.06529881,82.656,82.573,7.25940813]
[1771427343042,7.06529881,82.656,82.61,10.8994]
[1771427343336,7.06529881,82.656,82.591,7.25940813]
[1771427343746,7.06529881,82.656,82.608,10.8996]
[1771427344046,7.06529881,82.656,82.591,7.25940813]
[1771427344641,7.06529881,82.656,82.511,29.6113497]
[1771427344642,7.06529881,82.629,82.556,7.25940813]
[1771427344838,7.06529881,82.609,82.541,7.25940813]
[1771427345034,7.06529881,82.609,82.569,10.9048]
[1771427345744,7.06529881,82.609,82.541,7.25940813]
[1771427345938,7.06529881,82.629,82.541,7.25940813]
[1771427346740,10.8973,82.627,82.569,7.25940813]
[1771427347046,7.06529881,82.629,82.569,7.25940813]
[1771427347546,7.06529881,82.627,82.578,10.9036]
[1771427347939,7.06529881,82.619,82.552,7.25940813]
[1771427348445,7.06529881,82.619,82.578,10.9036]
[1771427349346,324.42268918,82.679,82.586,10.9025]
[1771427349347,10.8963,82.634,82.586,10.9025]
[1771427349640,7.06529881,82.633,82.568,7.25940813]
[1771427350040,7.06529881,82.619,82.548,7.25940813]
[1771427350539,7.06529881,82.618,82.575,10.9039]
[1771427351445,7.06529881,82.618,82.567,10.905]
[1771427351838,7.06529881,82.609,82.567,10.905]
[1771427352641,17.96499881,82.609,82.567,10.905]
[1771427352845,6.2711088,82.62,82.574,10.9041]
[1771427353442,10.8984,82.618,82.574,10.9041]
[1771427353640,7.06529881,82.618,82.567,10.9051]
[1771427353847,7.06529881,82.618,82.547,7.25940813]
[1771427354445,6.2711088,82.58,82.529,7.25940813]
[1771427354947,7.01503429,82.575,82.532,10.9097]
[1771427355143,6.2711088,82.58,82.51,6.80188548]
[1771427355338,7.01503429,82.593,82.51,6.80188548]
[1771427355540,6.2711088,82.6,82.54,6.80188548]
[1771427355748,7.01503429,82.599,82.516,6.80188548]
[1771427356243,13.28614309,82.58,82.539,10.9087]
[1771427356449,7.01503429,82.579,82.516,6.80188548]
[1771427357145,10.9051,82.567,82.516,6.80188548]
[1771427357344,17.92013429,82.567,82.516,6.80188548]
[1771427357545,7.01503429,82.559,82.499,6.80188548]
[1771427357948,7.01503429,82.559,82.513,10.9121]
[1771427358247,7.01503429,82.559,82.471,21.8355]
[1771427358248,7.01503429,82.559,82.481,6.80188548]
[1771427358447,6.2711088,82.54,82.482,6.80188548]
[1771427359050,7.01503429,82.559,82.482,6.80188548]
[1771427359449,7.01503429,82.559,82.483,6.80188548]
[1771427360146,7.01503429,82.559,82.513,10.9122]
[1771427360351,6.2711088,82.56,82.499,6.80188548]
[1771427360744,6.2711088,82.56,82.528,10.9101]
[1771427360945,6.2711088,82.58,82.5,6.2711088]
[1771427361141,7.01503429,82.579,82.501,6.80188548]
[1771427361750,7.01503429,82.579,82.531,10.9097]
[1771427362252,7.01503429,82.579,82.5,6.2711088]
[1771427362253,7.01503429,82.579,82.521,6.80188548]
[1771427362641,7.01503429,82.579,82.541,10.9085]
[1771427362840,11.18730935,82.644,82.521,6.80188548]
[1771427362841,7.01503429,82.596,82.521,6.80188548]
[1771427363348,7.01503429,82.596,82.539,6.80188548]
[1771427364052,10.8995,82.61,82.541,6.80188548]
[1771427364352,7.01503429,82.63,82.543,6.80188548]
[1771427364554,7.01503429,82.63,82.545,6.80188548]
[1771427364754,7.01503429,82.63,82.567,6.80188548]
[1771427365951,7.01503429,82.628,82.575,10.904]
[1771427367154,7.01503429,82.624,82.575,10.904]
[1771427367451,7.01503429,82.624,82.567,6.80188548]
[1771427368053,7.01503429,82.624,82.584,10.9028]
[1771427368651,7.01503429,82.619,82.563,10.9055]
[1771427368856,7.01503429,82.619,82.55,6.80188548]
[1771427369148,7.01503429,82.619,82.572,10.9044]
[1771427369459,7.01503429,82.619,82.55,6.80188548]
[1771427369845,7.01503429,82.608,82.564,10.9055]
[1771427370251,7.01503429,82.608,82.55,6.80188548]
[1771427370551,7.01503429,82.608,82.571,10.9044]
[1771427371844,7.01503429,82.608,82.56,10.9059]
[1771427372450,7.01503429,82.608,82.568,10.9048]
[1771427372749,7.01503429,82.608,82.55,6.80188548]
[1771427372946,7.01503429,82.583,82.531,6.80188548]
[1771427373145,6.2711088,82.6,82.532,6.80188548]
[1771427373146,7.01503429,82.599,82.532,6.80188548]
[1771427374353,6.2711088,82.61,82.557,6.80188548]
[1771427374554,7.01503429,82.623,82.557,6.80188548]
[1771427375348,7.01503429,82.62,82.569,10.9047]
[1771427376152,7.01503429,82.616,82.576,10.9039]
[1771427376457,13.28614309,82.65,82.571,6.80188548]
[1771427376657,10.8944,82.649,82.605,10.9]
[1771427377157,7.01503429,82.646,82.605,10.9]
[1771427377357,7.01503429,82.646,82.597,10.9011]
[1771427378657,10.8949,82.645,82.597,10.9011]
[1771427378858,7.01503429,82.646,82.604,10.9002]
[1771427380261,7.01503429,82.645,82.604,10.9002]
[1771427380453,7.01503429,82.664,82.611,10.8992]
[1771427380656,6.2711088,82.67,82.603,6.80188548]
[1771427381160,7.01503429,82.649,82.58,13.07299428]
[1771427381359,7.01503429,82.649,82.58,6.80188548]
[1771427381551,6.2711088,82.65,82.59,10.902]
[1771427381552,10.8959,82.637,82.59,10.902]
[1771427381757,7.01503429,82.629,82.561,6.80188548]
[1771427383358,10.8947,82.646,82.579,6.80188548]
[1771427384664,10.8947,82.646,82.603,10.9002]
[1771427384865,10.896,82.637,82.579,6.80188548]
[1771427385063,17.48786603,82.637,82.579,6.80188548]
[1771427385365,6.27749202,82.63,82.579,6.80188548]
[1771427386754,6.27749202,82.63,82.588,10.9023]
[1771427388657,12.86935805,82.63,82.588,10.9023]
[1771427388858,12.86935805,82.63,82.594,10.9015]
[1771427389062,12.86935805,82.63,82.579,6.80188548]
[1771427389462,12.86935805,82.63,82.595,10.9014]
[1771427389660,6.59186603,82.629,82.562,6.51901522]
[1771427389865,6.27749202,82.63,82.562,6.51901522]
[1771427390160,6.27749202,82.65,82.57,6.27749202]
[1771427390365,17.17169202,82.65,82.571,6.51901522]
[1771427390668,17.17169202,82.65,82.594,6.51901522]
[1771427390669,6.27749202,82.65,82.594,6.51901522]
[1771427390865,10.8921,82.666,82.594,6.51901522]
[1771427391057,10.8921,82.666,82.615,10.8987]
[1771427391566,6.59186603,82.688,82.613,6.51901522]
[1771427392764,6.59186603,82.688,82.631,6.51901522]
[1771427393265,82.75186603,82.688,82.631,6.51901522]
[1771427393457,17.48116603,82.687,82.641,10.8953]
[1771427393662,6.59186603,82.708,82.631,6.51901522]
[1771427393867,6.59186603,82.699,82.631,6.51901522]
[1771427394765,6.59186603,82.699,82.65,10.8941]
[1771427395769,6.59186603,82.697,82.641,10.8953]
[1771427395961,82.75186603,82.697,82.631,6.51901522]
[1771427396462,11.969257,82.72,82.63,6.27749202]
[1771427396463,6.27749202,82.71,82.647,6.51901522]
[1771427396668,76.16,82.707,82.647,6.51901522]
[1771427397057,6.56315059,82.708,82.647,6.51901522]
[1771427397563,6.27749202,82.71,82.647,6.51901522]
[1771427397762,76.16,82.724,82.651,6.88460436]
[1771427398162,6.56315059,82.725,82.681,10.89]
[1771427398563,6.56315059,82.725,82.651,6.88460436]
[1771427398965,10.8853,82.718,82.671,10.8914]
[1771427399167,6.56315059,82.717,82.651,6.88460436]
[1771427399466,6.56315059,82.709,82.651,6.88460436]
[1771427399861,6.56315059,82.689,82.625,6.88460436]
[1771427400469,6.56315059,82.686,82.625,6.88460436]
[1771427400669,6.27749202,82.67,82.601,6.88460436]
[1771427400872,6.56315059,82.668,82.618,10.8983]
[1771427401469,6.56315059,82.705,82.618,6.88460436]
[1771427401773,6.56315059,82.699,82.618,6.88460436]
[1771427401971,6.56315059,82.679,82.618,6.88460436]
[1771427402164,6.56315059,82.679,82.601,6.88460436]
[1771427402867,6.27749202,82.68,82.607,6.88460436]
[1771427403068,6.56315059,82.696,82.621,6.88460436]
[1771427403271,6.27749202,82.7,82.638,6.88460436]
[1771427403467,6.56315059,82.699,82.638,6.88460436]
[1771427403974,6.56315059,82.699,82.656,10.8933]
[1771427404268,6.56315059,82.699,82.638,6.88460436]
[1771427404470,6.56315059,82.699,82.568,179.0]
[1771427404471,6.56315059,82.679,82.637,10.8957]
[1771427404773,6.56315059,82.679,82.621,6.88460436]
[1771427405270,6.27749202,82.7,82.621,6.88460436]
[1771427405577,6.56315059,82.699,82.631,6.88460436]
[1771427405976,6.56315059,82.699,82.659,10.8929]
[1771427409072,6.56315059,82.699,82.631,6.88460436]
[1771427411174,6.56315059,82.679,82.612,6.88460436]
[1771427411369,6.56315059,82.667,82.617,10.8984]
[1771427411878,6.27749202,82.66,82.617,10.8984]
[1771427412270,6.27749202,82.68,82.611,6.88460436]
[1771427412478,6.56315059,82.684,82.611,6.88460436]
[1771427412978,6.56315059,82.684,82.648,10.8943]
[1771427413175,10.8878,82.699,82.629,6.88460436]
[1771427413382,10.8887,82.692,82.629,6.88460436]
[1771427413576,12.84064261,82.68,82.638,10.8957]
[1771427413778,10.8919,82.668,82.61,6.88460436]
[1771427413982,6.56315059,82.679,82.61,6.88460436]
[1771427414169,6.56315059,82.679,82.629,10.8969]
[1771427415581,6.66357451,82.659,82.591,6.28199368]
[1771427416381,6.66357451,82.653,82.591,6.28199368]
[1771427416586,6.27749202,82.64,82.591,6.28199368]
[1771427416982,6.27749202,82.64,82.604,10.9001]
[1771427417680,6.27749202,82.64,82.596,10.9013]
[1771427417879,6.27749202,82.64,82.591,6.28199368]
[1771427418280,6.27749202,82.64,82.603,10.9003]
[1771427418473,6.27749202,82.64,82.591,6.28199368]
[1771427418880,6.66357451,82.619,82.555,6.28199368]
[1771427419180,6.27749202,82.6,82.531,6.28199368]
[1771427419384,6.27749202,82.6,82.565,10.9053]
[1771427419885,6.27749202,82.6,82.547,6.28199368]
[1771427421388,6.66357451,82.599,82.549,10.9074]
[1771427421588,6.66357451,82.599,82.529,6.28199368]
[1771427422185,10.9023,82.589,82.54,10.9086]
[1771427422383,6.66357451,82.599,82.529,6.28199368]
[1771427422991,6.66357451,82.596,82.541,10.9085]
[1771427424390,6.66357451,82.596,82.516,76.16]
[1771427424391,6.27749202,82.6,82.555,10.9066]
[1771427424787,6.66357451,82.613,82.545,6.28199368]
[1771427425281,6.66357451,82.613,82.569,10.9048]
[1771427425486,6.66357451,82.613,82.545,6.28199368]
[1771427425895,6.27749202,82.62,82.565,6.28199368]
[1771427426191,6.66357451,82.619,82.548,6.28199368]
[1771427426694,6.66357451,82.619,82.572,10.9043]
[1771427426987,6.66357451,82.619,82.548,6.28199368]
[1771427427192,6.27749202,82.62,82.551,6.28199368]
[1771427427387,6.27749202,82.64,82.571,6.28199368]
[1771427427696,6.27749202,82.64,82.57,6.27749202]
[1771427427697,6.27749202,82.64,82.598,10.901]
[1771427427889,6.66357451,82.653,82.588,6.28199368]
[1771427428594,10.8939,82.652,82.608,10.8997]
[1771427428791,17.55747451,82.652,82.608,10.8997]
[1771427428993,6.66357451,82.651,82.608,10.8997]
[1771427429289,6.27749202,82.64,82.57,6.28199368]
[1771427430494,6.27749202,82.64,82.591,10.9019]
[1771427431095,6.66357451,82.639,82.578,10.9036]
[1771427431296,6.66357451,82.639,82.56,6.27749202]
[1771427431487,6.66357451,82.637,82.56,6.27749202]
[1771427431695,6.66357451,82.619,82.568,10.9049]
[1771427432191,6.66357451,82.619,82.582,10.903]
[1771427432389,6.66357451,82.619,82.56,6.28199368]
[1771427433083,10.8985,82.618,82.572,10.9044]
[1771427433488,6.66357451,82.619,82.56,6.28199368]
[1771427434600,6.66357451,82.618,82.571,10.9045]
[1771427435786,17.56207451,82.617,82.571,10.9045]
[1771427435992,6.66357451,82.616,82.571,10.9045]
[1771427436192,6.27749202,82.6,82.542,6.28199368]
[1771427436794,6.27749202,82.6,82.559,10.9061]
[1771427438098,10.9012,82.597,82.551,10.9072]
[1771427438297,58.0497,82.645,82.525,6.28199368]
[1771427438298,6.66357451,82.596,82.525,6.28199368]
[1771427438498,6.27749202,82.58,82.525,6.28199368]
[1771427439494,6.27749202,82.58,82.545,10.908]
[1771427441492,6.27749202,82.58,82.525,6.28199368]
[1771427441493,10.9037,82.578,82.525,6.28199368]
[1771427442490,10.9042,82.575,82.529,10.91]
[1771427442690,6.66357451,82.577,82.529,10.91]
[1771427443399,6.66357451,82.594,82.525,6.28199368]
[1771427443898,12.94106653,82.57,82.507,6.28199368]
[1771427444087,12.94106653,82.57,82.513,459.78505589]
[1771427444289,6.66357451,82.569,82.513,6.28199368]
[1771427445192,6.84054938,82.56,82.507,10.9129]
[1771427445398,6.27749202,82.57,82.497,6.94831965]
[1771427445593,6.27749202,82.57,82.501,6.94831965]
[1771427445795,6.27749202,82.59,82.546,10.9078]
[1771427445995,6.84054938,82.589,82.535,6.94831965]
[1771427446591,6.84054938,82.588,82.535,6.94831965]
[1771427446996,6.84054938,82.588,82.511,6.94831965]
[1771427447196,6.28724443,82.6,82.511,6.94831965]
[1771427447197,6.84054938,82.566,82.52,10.9112]
[1771427447493,6.84054938,82.566,82.511,6.94831965]
[1771427448399,10.9054,82.565,82.514,10.9121]
[1771427449289,6.84054938,82.566,82.523,10.9108]
[1771427450298,10.9054,82.565,82.511,6.94831965]
[1771427450493,6.84054938,82.566,82.511,6.94831965]
[1771427451293,6.84054938,82.566,82.521,10.9111]
[1771427451994,6.84054938,82.566,82.527,10.9103]
[1771427453492,6.28724443,82.6,82.534,10.9094]
[1771427453493,6.28724443,82.58,82.534,10.9094]
[1771427454001,6.84054938,82.579,82.534,10.9094]
[1771427455806,10.9037,82.578,82.534,10.9094]
[1771427456596,6.28724443,82.58,82.527,6.94831965]
[1771427456802,76.18,82.589,82.535,6.94831965]
[1771427457108,6.28724443,82.59,82.535,6.94831965]
[1771427457506,6.84054938,82.589,82.535,6.94831965]
[1771427457701,10.9032,82.582,82.535,6.94831965]
[1771427458106,17.74284938,82.589,82.543,10.9082]
[1771427458302,76.18,82.588,82.543,10.9082]
[1771427458498,6.28724443,82.59,82.535,6.94831965]
[1771427459303,7.29129587,82.605,82.535,6.94831965]
[1771427459697,7.29129587,82.603,82.535,6.94831965]
[1771427460914,7.29129587,82.589,82.535,6.94831965]
[1771427461412,7.29129587,82.587,82.52,7.01844592]
[1771427462514,7.29129587,82.587,82.535,7.01844592]
[1771427462722,7.29129587,82.604,82.535,7.01844592]
[1771427463106,10.9023,82.589,82.545,10.908]
[1771427463308,7.29129587,82.589,82.535,7.01844592]
[1771427463511,7.29129587,82.589,82.501,7.01844592]
[1771427463711,10.9064,82.558,82.508,7.01844592]
[1771427464113,7.29129587,82.569,82.508,7.01844592]
[1771427464312,6.28724443,82.57,82.508,7.01844592]